[Event "*** Titled Tuesday Blitz"]
[Site "Chess.com"]
[Date "2020.04.28"]
[Round "8"]
[White "RodinMihail"]
[Black "TheNomNomFactor"]
[Result "0-1"]
[WhiteElo "2519"]
[BlackElo "2411"]
[TimeControl "180+1"]
[EndTime "11:36:26 PDT"]
[Termination "TheNomNomFactor won by resignation"]

1. e4 {[%clk 0:03:00.9]} 1... e5 {[%clk 0:02:49.1]} 2. Nf3 {[%clk 0:03:00.8]}
2... Nc6 {[%clk 0:02:49.6]} 3. Nc3 {[%clk 0:03:01.1]} 3... Nf6 {[%clk
0:02:49.2]} 4. d4 {[%clk 0:03:01.7]} 4... exd4 {[%clk 0:02:49.1]} 5. Nxd4 {[%clk
0:03:02.6]} 5... Bb4 {[%clk 0:02:49.3]} 6. Nxc6 {[%clk 0:03:02.7]} 6... bxc6
{[%clk 0:02:50.2]} 7. Bd3 {[%clk 0:03:03.3]} 7... O-O {[%clk 0:02:50.4]} 8. O-O
{[%clk 0:03:03.1]} 8... d5 {[%clk 0:02:50.9]} 9. exd5 {[%clk 0:03:04]} 9... cxd5
{[%clk 0:02:51.7]} 10. Bg5 {[%clk 0:03:04]} 10... c6 {[%clk 0:02:50.8]} 11. Qf3
{[%clk 0:03:04.4]} 11... Be7 {[%clk 0:02:50.6]} 12. Rae1 {[%clk 0:03:02.9]}
12... Be6 {[%clk 0:02:36]} 13. Ne2 {[%clk 0:03:01]} 13... h6 {[%clk 0:02:35.3]}
14. Bf4 {[%clk 0:02:46.9]} 14... c5 {[%clk 0:02:25.2]} 15. c3 {[%clk 0:02:36.9]}
15... Qb6 {[%clk 0:01:53.4]} 16. b3 {[%clk 0:02:32.2]} 16... a5 {[%clk
0:01:48.3]} 17. Be5 {[%clk 0:02:18.7]} 17... Nd7 {[%clk 0:01:36.9]} 18. Bf4
{[%clk 0:02:14.5]} 18... a4 {[%clk 0:01:35.7]} 19. Qg3 {[%clk 0:02:08.3]} 19...
Kh8 {[%clk 0:01:28.3]} 20. Bc7 {[%clk 0:02:07.6]} 20... Qb7 {[%clk 0:01:22.5]}
21. Nf4 {[%clk 0:02:00.1]} 21... Nf6 {[%clk 0:00:34.6]} 22. Rxe6 {[%clk
0:01:56.3]} 22... fxe6 {[%clk 0:00:33.6]} 23. Ng6+ {[%clk 0:01:56.3]} 23... Kg8
{[%clk 0:00:34]} 24. Nxe7+ {[%clk 0:01:56.3]} 24... Kf7 {[%clk 0:00:34.7]} 25.
Ng6 {[%clk 0:01:50.9]} 25... Rfc8 {[%clk 0:00:34]} 26. Be5 {[%clk 0:01:49.8]}
26... axb3 {[%clk 0:00:34.2]} 27. axb3 {[%clk 0:01:49.3]} 27... Qxb3 {[%clk
0:00:34.4]} 28. Nf4 {[%clk 0:01:46.7]} 28... g5 {[%clk 0:00:33.6]} 29. Nh5
{[%clk 0:01:42.4]} 29... Nxh5 {[%clk 0:00:32.4]} 30. Qf3+ {[%clk 0:01:42.7]}
30... Nf4 {[%clk 0:00:32.1]} 31. g3 {[%clk 0:01:42.2]} 31... c4 {[%clk
0:00:19.9]} 32. Bb1 {[%clk 0:01:29.4]} 32... Ra1 {[%clk 0:00:19.6]} 33. Bg6+
{[%clk 0:01:29.1]} 33... Kxg6 {[%clk 0:00:16.4]} 34. Rxa1 {[%clk 0:01:30]} 34...
Nh5 {[%clk 0:00:14.8]} 35. Ra7 {[%clk 0:01:25.4]} 35... Qb1+ {[%clk 0:00:13.6]}
36. Kg2 {[%clk 0:01:24.4]} 36... Qe4 {[%clk 0:00:14.3]} 37. g4 {[%clk
0:01:02.5]} 37... Nf4+ {[%clk 0:00:14]} 38. Bxf4 {[%clk 0:01:00.3]} 38... gxf4
{[%clk 0:00:14.9]} 39. Ra6 {[%clk 0:00:55.1]} 39... Kf6 {[%clk 0:00:14]} 40. h3
{[%clk 0:00:51.7]} 40... Ke5 {[%clk 0:00:11.7]} 41. Ra7 {[%clk 0:00:48.5]} 41...
Rb8 {[%clk 0:00:10.5]} 42. Qxe4+ {[%clk 0:00:46.7]} 42... Kxe4 {[%clk
0:00:09.5]} 43. Rh7 {[%clk 0:00:45.2]} 43... d4 {[%clk 0:00:07]} 44. cxd4 {[%clk
0:00:44.1]} 44... Rc8 {[%clk 0:00:07.2]} 45. Re7 {[%clk 0:00:38.9]} 45... c3
{[%clk 0:00:07.2]} 46. Rxe6+ {[%clk 0:00:39]} 46... Kd3 {[%clk 0:00:06]} 47. Re1
{[%clk 0:00:38.8]} 47... c2 {[%clk 0:00:05.6]} 48. Kf3 {[%clk 0:00:36.9]} 48...
c1=Q {[%clk 0:00:05.4]} 49. Rxc1 {[%clk 0:00:36.7]} 49... Rxc1 {[%clk
0:00:06.3]} 50. Kxf4 {[%clk 0:00:37.5]} 50... Kxd4 {[%clk 0:00:06.8]} 51. Kf5
{[%clk 0:00:36.9]} 51... Rf1 {[%clk 0:00:05.7]} 52. f4 {[%clk 0:00:36.8]} 52...
Ke3 {[%clk 0:00:06.1]} 53. Kg6 {[%clk 0:00:35.9]} 53... Kxf4 {[%clk 0:00:04.8]}
54. Kxh6 {[%clk 0:00:35.8]} 54... Rh1 {[%clk 0:00:05.4]} 55. g5 {[%clk 0:00:34]}
55... Rxh3+ {[%clk 0:00:05.3]} 56. Kg6 {[%clk 0:00:34.9]} 56... Rg3 {[%clk
0:00:06.2]} 57. Kf6 {[%clk 0:00:35]} 57... Rxg5 {[%clk 0:00:07]} 58. Ke6 {[%clk
0:00:35.3]} 58... Kg4 {[%clk 0:00:07.9]} 59. Kf6 {[%clk 0:00:33.3]} 59... Rf5+
{[%clk 0:00:08.8]} 60. Ke6 {[%clk 0:00:34.2]} 60... Kf4 {[%clk 0:00:09.3]} 61.
Kd6 {[%clk 0:00:34.7]} 61... Ke4 {[%clk 0:00:10.2]} 62. Kc6 {[%clk 0:00:35.6]}
62... Rd5 {[%clk 0:00:10.4]} 63. Kc7 {[%clk 0:00:35.3]} 63... Kd4 {[%clk
0:00:11.3]} 64. Kb6 {[%clk 0:00:36.2]} 64... Kc4 {[%clk 0:00:12.2]} 65. Kc6
{[%clk 0:00:37]} 65... Kd4 {[%clk 0:00:12.4]} 66. Kc7 {[%clk 0:00:37.3]} 66...
Ke5 {[%clk 0:00:12.4]} 67. Kb6 {[%clk 0:00:38.2]} 67... Ke6 {[%clk 0:00:12.9]}
68. Kc6 {[%clk 0:00:38.2]} 68... Re5 {[%clk 0:00:12.9]} 0-1

[Event "*** Titled Tuesday Blitz"]
[Site "Chess.com"]
[Date "2020.04.28"]
[Round "8"]
[White "Danesz22"]
[Black "JoakimVonAnd"]
[Result "0-1"]
[WhiteElo "2301"]
[BlackElo "2513"]
[TimeControl "180+1"]
[EndTime "11:36:27 PDT"]
[Termination "JoakimVonAnd won by resignation"]

1. e4 {[%clk 0:03:00.9]} 1... c6 {[%clk 0:02:59.3]} 2. d4 {[%clk 0:02:59.9]}
2... d5 {[%clk 0:03:00.2]} 3. e5 {[%clk 0:02:58]} 3... Bf5 {[%clk 0:02:59.7]} 4.
h4 {[%clk 0:02:57.9]} 4... h5 {[%clk 0:02:58.9]} 5. Bd3 {[%clk 0:02:56.6]} 5...
Bxd3 {[%clk 0:02:58.3]} 6. Qxd3 {[%clk 0:02:57.5]} 6... e6 {[%clk 0:02:58.9]} 7.
Bg5 {[%clk 0:02:54.2]} 7... Qb6 {[%clk 0:02:57.8]} 8. Nd2 {[%clk 0:02:49.4]}
8... c5 {[%clk 0:02:56.7]} 9. c4 {[%clk 0:02:41.9]} 9... Nc6 {[%clk 0:02:51.9]}
10. cxd5 {[%clk 0:02:40.3]} 10... exd5 {[%clk 0:02:42.4]} 11. Ne2 {[%clk
0:02:34.7]} 11... c4 {[%clk 0:02:30.9]} 12. Qf3 {[%clk 0:02:25.7]} 12... Nxd4
{[%clk 0:01:54.1]} 13. Nxd4 {[%clk 0:02:23.5]} 13... Qxd4 {[%clk 0:01:55]} 14.
O-O {[%clk 0:02:23.6]} 14... Be7 {[%clk 0:01:55]} 15. Rfe1 {[%clk 0:01:50.6]}
15... Rd8 {[%clk 0:01:34.6]} 16. Rad1 {[%clk 0:01:47.6]} 16... Qg4 {[%clk
0:01:33.7]} 17. Qe3 {[%clk 0:01:19.8]} 17... Bxg5 {[%clk 0:01:26.5]} 18. hxg5
{[%clk 0:01:12.2]} 18... Ne7 {[%clk 0:01:26.2]} 19. Qxa7 {[%clk 0:01:06.2]}
19... h4 {[%clk 0:01:20.6]} 20. Nf1 {[%clk 0:00:54.4]} 20... h3 {[%clk 0:01:11]}
21. Ng3 {[%clk 0:00:29.2]} 21... Nf5 {[%clk 0:00:55.3]} 22. e6 {[%clk
0:00:22.7]} 22... h2+ {[%clk 0:00:27.5]} 23. Kh1 {[%clk 0:00:18.7]} 23... Qxg3
{[%clk 0:00:28]} 24. Qa4+ {[%clk 0:00:13.2]} 24... Ke7 {[%clk 0:00:20.6]} 25.
exf7+ {[%clk 0:00:09.5]} 25... Kxf7 {[%clk 0:00:20.3]} 26. Qc2 {[%clk
0:00:08.9]} 26... Qxg5 {[%clk 0:00:17.7]} 27. Re5 {[%clk 0:00:08.2]} 27... g6
{[%clk 0:00:16.9]} 28. Rde1 {[%clk 0:00:07]} 28... Rhe8 {[%clk 0:00:16.1]} 29.
Qc3 {[%clk 0:00:06.2]} 29... Rxe5 {[%clk 0:00:15.6]} 30. Qxe5 {[%clk 0:00:07.1]}
30... Qf6 {[%clk 0:00:14.1]} 31. Qc7+ {[%clk 0:00:06.9]} 31... Kg8 {[%clk
0:00:13.5]} 32. Qxb7 {[%clk 0:00:04.9]} 32... Rf8 {[%clk 0:00:09.4]} 33. a4
{[%clk 0:00:04.2]} 33... Nh4 {[%clk 0:00:08.8]} 34. Qxd5+ {[%clk 0:00:03.2]}
34... Kh7 {[%clk 0:00:08.4]} 35. Qxc4 {[%clk 0:00:03.7]} 35... Qxf2 {[%clk
0:00:07.3]} 36. Qe4 {[%clk 0:00:04.2]} 36... Nxg2 {[%clk 0:00:03.8]} 37. Qe7+
{[%clk 0:00:02.9]} 37... Kh6 {[%clk 0:00:03.3]} 38. Qxf8+ {[%clk 0:00:02.9]}
38... Qxf8 {[%clk 0:00:02.8]} 39. Kxg2 {[%clk 0:00:03.8]} 39... Qa8+ {[%clk
0:00:03.5]} 40. Kxh2 {[%clk 0:00:03.3]} 40... Qxa4 {[%clk 0:00:04.4]} 41. Re2
{[%clk 0:00:03.1]} 41... Qb3 {[%clk 0:00:05]} 42. Rg2 {[%clk 0:00:04]} 42... g5
{[%clk 0:00:05.6]} 43. Kg1 {[%clk 0:00:04.9]} 43... Kh5 {[%clk 0:00:06]} 44.
Rh2+ {[%clk 0:00:05.8]} 44... Kg4 {[%clk 0:00:06.1]} 45. Rg2+ {[%clk 0:00:06.7]}
45... Kf5 {[%clk 0:00:07]} 46. Rf2+ {[%clk 0:00:07.5]} 46... Kg6 {[%clk
0:00:07.7]} 47. Kf1 {[%clk 0:00:08]} 47... g4 {[%clk 0:00:07.6]} 48. Re2 {[%clk
0:00:08.9]} 48... Kg5 {[%clk 0:00:08.5]} 49. Ke1 {[%clk 0:00:09.1]} 49... g3
{[%clk 0:00:09]} 50. Rd2 {[%clk 0:00:08.9]} 50... Kg4 {[%clk 0:00:09.3]} 51. Re2
{[%clk 0:00:09.5]} 51... Kh3 {[%clk 0:00:09.7]} 52. Kd2 {[%clk 0:00:10.4]} 52...
g2 {[%clk 0:00:09.7]} 53. Re3+ {[%clk 0:00:11.3]} 53... Qxe3+ {[%clk 0:00:09.9]}
54. Kxe3 {[%clk 0:00:12.2]} 54... g1=Q+ {[%clk 0:00:10.8]} 55. Kd3 {[%clk
0:00:12.9]} 55... Qb6 {[%clk 0:00:11.5]} 0-1

[Event "*** Titled Tuesday Blitz"]
[Site "Chess.com"]
[Date "2020.04.28"]
[Round "8"]
[White "vaishali2001"]
[Black "PowerThinking2650"]
[Result "1-0"]
[WhiteElo "2505"]
[BlackElo "2267"]
[TimeControl "180+1"]
[EndTime "11:36:27 PDT"]
[Termination "vaishali2001 won on time"]

1. e4 {[%clk 0:02:58.3]} 1... e5 {[%clk 0:02:59.9]} 2. Nf3 {[%clk 0:02:57.4]}
2... Nc6 {[%clk 0:03:00.4]} 3. Bb5 {[%clk 0:02:57.2]} 3... a6 {[%clk 0:03:00.3]}
4. Ba4 {[%clk 0:02:57.7]} 4... Nf6 {[%clk 0:03:00.5]} 5. d3 {[%clk 0:02:57]}
5... b5 {[%clk 0:02:56.8]} 6. Bb3 {[%clk 0:02:56.2]} 6... Bc5 {[%clk 0:02:57.2]}
7. Nc3 {[%clk 0:02:55.3]} 7... d6 {[%clk 0:02:53.9]} 8. Nd5 {[%clk 0:02:40.9]}
8... h6 {[%clk 0:02:38.5]} 9. c3 {[%clk 0:02:25.3]} 9... Be6 {[%clk 0:02:27.4]}
10. O-O {[%clk 0:01:59.8]} 10... Bxd5 {[%clk 0:02:03.6]} 11. exd5 {[%clk
0:01:51.8]} 11... Ne7 {[%clk 0:02:02.4]} 12. d4 {[%clk 0:01:51.7]} 12... exd4
{[%clk 0:02:01.7]} 13. Nxd4 {[%clk 0:01:52.5]} 13... O-O {[%clk 0:01:55.9]} 14.
Qf3 {[%clk 0:01:41.9]} 14... Bxd4 {[%clk 0:01:43.4]} 15. cxd4 {[%clk 0:01:42.8]}
15... Qd7 {[%clk 0:01:43.6]} 16. Bxh6 {[%clk 0:01:36.3]} 16... Qf5 {[%clk
0:01:18.4]} 17. Qxf5 {[%clk 0:01:13.7]} 17... Nxf5 {[%clk 0:01:18.2]} 18. Bg5
{[%clk 0:01:08.7]} 18... Nxd4 {[%clk 0:01:13.7]} 19. Bxf6 {[%clk 0:01:08.6]}
19... gxf6 {[%clk 0:01:02.3]} 20. Rfd1 {[%clk 0:01:03.6]} 20... Nxb3 {[%clk
0:00:51.6]} 21. axb3 {[%clk 0:01:04.5]} 21... Rfe8 {[%clk 0:00:51.8]} 22. Rd2
{[%clk 0:00:38]} 22... a5 {[%clk 0:00:47.1]} 23. g3 {[%clk 0:00:36]} 23... Re4
{[%clk 0:00:42.2]} 24. Rc1 {[%clk 0:00:28.4]} 24... Rb4 {[%clk 0:00:31.1]} 25.
Rxc7 {[%clk 0:00:20.5]} 25... Rxb3 {[%clk 0:00:30.3]} 26. Rc6 {[%clk 0:00:20.2]}
26... a4 {[%clk 0:00:27]} 27. Rxd6 {[%clk 0:00:19.9]} 27... b4 {[%clk
0:00:27.3]} 28. Rb6 {[%clk 0:00:19.3]} 28... a3 {[%clk 0:00:11.9]} 29. bxa3
{[%clk 0:00:20.2]} 29... Raxa3 {[%clk 0:00:11.5]} 30. d6 {[%clk 0:00:17.8]}
30... Rd3 {[%clk 0:00:11.6]} 31. Rb8+ {[%clk 0:00:16.3]} 31... Kg7 {[%clk
0:00:11.4]} 32. Rxd3 {[%clk 0:00:13.4]} 32... Rxd3 {[%clk 0:00:12.3]} 33. Rxb4
{[%clk 0:00:13.5]} 33... Rxd6 {[%clk 0:00:12.8]} 34. Kg2 {[%clk 0:00:14.1]}
34... f5 {[%clk 0:00:12.9]} 35. Rb5 {[%clk 0:00:13.8]} 35... Kg6 {[%clk
0:00:12.1]} 36. Kf3 {[%clk 0:00:14]} 36... Rd3+ {[%clk 0:00:11.8]} 37. Kf4
{[%clk 0:00:13.9]} 37... Rd4+ {[%clk 0:00:11.8]} 38. Ke3 {[%clk 0:00:14.4]}
38... Re4+ {[%clk 0:00:12]} 39. Kf3 {[%clk 0:00:14.9]} 39... Rd4 {[%clk
0:00:11.5]} 40. h4 {[%clk 0:00:14.6]} 40... f6 {[%clk 0:00:10.6]} 41. Rb6 {[%clk
0:00:13.2]} 41... Rd3+ {[%clk 0:00:10.4]} 42. Ke2 {[%clk 0:00:12.9]} 42... Rc3
{[%clk 0:00:10.3]} 43. Rd6 {[%clk 0:00:12.3]} 43... Ra3 {[%clk 0:00:09.7]} 44.
Rd3 {[%clk 0:00:12.6]} 44... Ra2+ {[%clk 0:00:08.2]} 45. Kf3 {[%clk 0:00:10.7]}
45... Ra4 {[%clk 0:00:07.7]} 46. Ke3 {[%clk 0:00:10.4]} 46... f4+ {[%clk
0:00:07.4]} 47. gxf4 {[%clk 0:00:08.9]} 47... Kf5 {[%clk 0:00:06.4]} 48. Rd5+
{[%clk 0:00:08.6]} 48... Kg6 {[%clk 0:00:05.8]} 49. Kf3 {[%clk 0:00:08]} 49...
Ra1 {[%clk 0:00:03.9]} 50. h5+ {[%clk 0:00:07.4]} 50... Kh6 {[%clk 0:00:03.8]}
51. Kg4 {[%clk 0:00:06.5]} 1-0

[Event "*** Titled Tuesday Blitz"]
[Site "Chess.com"]
[Date "2020.04.28"]
[Round "8"]
[White "smshk35"]
[Black "GMNeiksans"]
[Result "0-1"]
[WhiteElo "2372"]
[BlackElo "2778"]
[TimeControl "180+1"]
[EndTime "11:36:27 PDT"]
[Termination "GMNeiksans won by resignation"]

1. e4 {[%clk 0:03:00.9]} 1... c5 {[%clk 0:02:56.2]} 2. Nf3 {[%clk 0:03:00.7]}
2... e6 {[%clk 0:02:56]} 3. d3 {[%clk 0:02:57.9]} 3... Nc6 {[%clk 0:02:54.5]} 4.
g3 {[%clk 0:02:57.2]} 4... Nf6 {[%clk 0:02:50.9]} 5. Bg2 {[%clk 0:02:56.9]} 5...
d5 {[%clk 0:02:49.6]} 6. Nbd2 {[%clk 0:02:54.6]} 6... g6 {[%clk 0:02:49.3]} 7.
O-O {[%clk 0:02:53.2]} 7... Bg7 {[%clk 0:02:49.2]} 8. c3 {[%clk 0:02:53.3]} 8...
O-O {[%clk 0:02:48.9]} 9. a4 {[%clk 0:02:49.3]} 9... b6 {[%clk 0:02:39.9]} 10.
Re1 {[%clk 0:02:38.5]} 10... Ba6 {[%clk 0:02:36.1]} 11. Qc2 {[%clk 0:02:37.8]}
11... dxe4 {[%clk 0:02:23.6]} 12. dxe4 {[%clk 0:02:25.4]} 12... Bd3 {[%clk
0:02:23.6]} 13. Qb3 {[%clk 0:02:18.9]} 13... Na5 {[%clk 0:02:07.3]} 14. Qa3
{[%clk 0:02:17.7]} 14... c4 {[%clk 0:01:50.1]} 15. Bf1 {[%clk 0:01:49.9]} 15...
Bxf1 {[%clk 0:01:25.4]} 16. Kxf1 {[%clk 0:01:34.2]} 16... Rc8 {[%clk 0:01:17.4]}
17. e5 {[%clk 0:01:22.8]} 17... Nd7 {[%clk 0:01:11.6]} 18. Qd6 {[%clk
0:01:16.4]} 18... Nc5 {[%clk 0:01:05.5]} 19. Ne4 {[%clk 0:01:09.9]} 19... Nab3
{[%clk 0:00:56.4]} 20. Rb1 {[%clk 0:00:58.7]} 20... Nxe4 {[%clk 0:00:39.9]} 21.
Rxe4 {[%clk 0:00:56.4]} 21... Qe8 {[%clk 0:00:39.4]} 22. Bg5 {[%clk 0:00:51.1]}
22... Qxa4 {[%clk 0:00:38.7]} 23. Bf6 {[%clk 0:00:41.2]} 23... Qc6 {[%clk
0:00:34.5]} 24. Qxc6 {[%clk 0:00:32.6]} 24... Rxc6 {[%clk 0:00:34.4]} 25. Rd1
{[%clk 0:00:24.1]} 25... Rc7 {[%clk 0:00:33.2]} 26. Nd4 {[%clk 0:00:23.3]} 26...
Nc5 {[%clk 0:00:30.3]} 27. Re3 {[%clk 0:00:19.9]} 27... Rd7 {[%clk 0:00:28.5]}
28. Bxg7 {[%clk 0:00:19.8]} 28... Kxg7 {[%clk 0:00:28.3]} 29. Ke2 {[%clk
0:00:18]} 29... Rfd8 {[%clk 0:00:27]} 30. Rb1 {[%clk 0:00:16.9]} 30... Nb3
{[%clk 0:00:24.4]} 31. Nxb3 {[%clk 0:00:14.1]} 31... cxb3 {[%clk 0:00:24.9]} 32.
Kf3 {[%clk 0:00:14.4]} 32... Rd2 {[%clk 0:00:24.8]} 33. Re2 {[%clk 0:00:14.4]}
33... R8d3+ {[%clk 0:00:23.8]} 34. Re3 {[%clk 0:00:14.7]} 34... Rxe3+ {[%clk
0:00:20.3]} 35. Kxe3 {[%clk 0:00:15.6]} 35... Rc2 {[%clk 0:00:20.8]} 36. h4
{[%clk 0:00:14.5]} 36... a5 {[%clk 0:00:20.7]} 37. f3 {[%clk 0:00:13.5]} 37...
a4 {[%clk 0:00:21.1]} 38. Kd3 {[%clk 0:00:11.8]} 38... Rf2 {[%clk 0:00:21.1]}
39. Ke3 {[%clk 0:00:11.4]} 39... Rc2 {[%clk 0:00:21.3]} 40. Kd3 {[%clk
0:00:11.5]} 40... h5 {[%clk 0:00:19.9]} 41. c4 {[%clk 0:00:09]} 41... Kf8 {[%clk
0:00:18.1]} 42. Ra1 {[%clk 0:00:09.1]} 42... Rxb2 {[%clk 0:00:16.4]} 43. Rxa4
{[%clk 0:00:09.4]} 43... Rg2 {[%clk 0:00:14.5]} 44. Rb4 {[%clk 0:00:09.7]} 44...
Rxg3 {[%clk 0:00:14.7]} 45. Ke3 {[%clk 0:00:09.5]} 45... Rh3 {[%clk 0:00:14.4]}
46. Rxb3 {[%clk 0:00:09.4]} 46... Rxh4 {[%clk 0:00:14.7]} 47. Kd3 {[%clk
0:00:09.6]} 47... Rf4 {[%clk 0:00:14.9]} 48. Rxb6 {[%clk 0:00:08.4]} 48... Rxf3+
{[%clk 0:00:15]} 49. Kd4 {[%clk 0:00:09]} 49... Rf1 {[%clk 0:00:14.8]} 50. c5
{[%clk 0:00:09.3]} 50... Rc1 {[%clk 0:00:13.8]} 51. Rb4 {[%clk 0:00:08.3]} 51...
h4 {[%clk 0:00:12.2]} 52. Rb8+ {[%clk 0:00:05.3]} 52... Kg7 {[%clk 0:00:12.3]}
53. Rb3 {[%clk 0:00:05]} 53... g5 {[%clk 0:00:11.9]} 54. Rc3 {[%clk 0:00:05.2]}
54... Rxc3 {[%clk 0:00:11]} 55. Kxc3 {[%clk 0:00:06.1]} 55... h3 {[%clk
0:00:11.6]} 56. c6 {[%clk 0:00:07]} 56... h2 {[%clk 0:00:12.2]} 57. c7 {[%clk
0:00:07.6]} 57... h1=Q {[%clk 0:00:12.2]} 58. c8=Q {[%clk 0:00:08.5]} 0-1

[Event "*** Titled Tuesday Blitz"]
[Site "Chess.com"]
[Date "2020.04.28"]
[Round "8"]
[White "IAgrest"]
[Black "DrBergerBerger"]
[Result "0-1"]
[WhiteElo "2274"]
[BlackElo "2444"]
[TimeControl "180+1"]
[EndTime "11:36:29 PDT"]
[Termination "DrBergerBerger won by resignation"]

1. e4 {[%clk 0:03:00.9]} 1... e6 {[%clk 0:02:59.6]} 2. d4 {[%clk 0:03:00.2]}
2... d5 {[%clk 0:03:00.1]} 3. Nc3 {[%clk 0:03:00]} 3... Nf6 {[%clk 0:02:59.5]}
4. Bg5 {[%clk 0:02:59.6]} 4... dxe4 {[%clk 0:02:59.1]} 5. Nxe4 {[%clk 0:02:59]}
5... Nbd7 {[%clk 0:02:59.5]} 6. Nf3 {[%clk 0:02:55.6]} 6... Be7 {[%clk
0:02:59.1]} 7. Nxf6+ {[%clk 0:02:50.2]} 7... Bxf6 {[%clk 0:02:58.6]} 8. h4
{[%clk 0:02:41.2]} 8... O-O {[%clk 0:02:56.6]} 9. Bd3 {[%clk 0:02:40.3]} 9... c5
{[%clk 0:02:52.5]} 10. Qe2 {[%clk 0:02:37.3]} 10... cxd4 {[%clk 0:02:52.5]} 11.
O-O-O {[%clk 0:02:28]} 11... e5 {[%clk 0:02:43.9]} 12. Rde1 {[%clk 0:02:01.7]}
12... Re8 {[%clk 0:02:35.8]} 13. Nxd4 {[%clk 0:01:42.2]} 13... Nc5 {[%clk
0:02:18.3]} 14. Bb5 {[%clk 0:01:22.1]} 14... Bxg5+ {[%clk 0:01:37.9]} 15. hxg5
{[%clk 0:01:20.4]} 15... Qxg5+ {[%clk 0:01:32.4]} 16. Kb1 {[%clk 0:01:17]} 16...
Be6 {[%clk 0:01:06.9]} 17. Bxe8 {[%clk 0:01:01.8]} 17... exd4 {[%clk 0:01:05.9]}
18. Bb5 {[%clk 0:00:56.3]} 18... Qd5 {[%clk 0:00:56]} 19. b3 {[%clk 0:00:41.8]}
19... Rc8 {[%clk 0:00:47.1]} 20. Bc4 {[%clk 0:00:36.6]} 20... Qf5 {[%clk
0:00:46.9]} 21. Bxe6 {[%clk 0:00:29.3]} 21... Nxe6 {[%clk 0:00:47.8]} 22. Qe4
{[%clk 0:00:25.4]} 22... Qxe4 {[%clk 0:00:38.2]} 23. Rxe4 {[%clk 0:00:26.3]}
23... g6 {[%clk 0:00:37.1]} 24. Rd1 {[%clk 0:00:24.5]} 24... Kg7 {[%clk
0:00:34.6]} 25. Kb2 {[%clk 0:00:24.2]} 25... h5 {[%clk 0:00:34]} 26. g3 {[%clk
0:00:22.8]} 26... Kf6 {[%clk 0:00:32.5]} 27. Rde1 {[%clk 0:00:21]} 27... Rc5
{[%clk 0:00:30.5]} 28. a4 {[%clk 0:00:19.8]} 28... a5 {[%clk 0:00:29.7]} 29. Rd1
{[%clk 0:00:16]} 29... b6 {[%clk 0:00:26.4]} 30. Rd3 {[%clk 0:00:15.5]} 30...
Rf5 {[%clk 0:00:23.6]} 31. Re2 {[%clk 0:00:15.4]} 31... Kg5 {[%clk 0:00:20.5]}
32. c3 {[%clk 0:00:15.3]} 32... dxc3+ {[%clk 0:00:19.2]} 33. Kxc3 {[%clk
0:00:15.3]} 33... Kg4 {[%clk 0:00:17.5]} 34. Rd7 {[%clk 0:00:14.1]} 34... Kf3
{[%clk 0:00:15.1]} 35. Rdd2 {[%clk 0:00:12.4]} 35... Rc5+ {[%clk 0:00:14.3]} 36.
Kb2 {[%clk 0:00:12.3]} 36... g5 {[%clk 0:00:13]} 37. Re3+ {[%clk 0:00:12]} 37...
Kg4 {[%clk 0:00:13.1]} 38. Re4+ {[%clk 0:00:11.6]} 38... Kh3 {[%clk 0:00:11.3]}
39. Re3 {[%clk 0:00:08.9]} 39... Rf5 {[%clk 0:00:10.6]} 40. Rc3 {[%clk
0:00:07.6]} 40... g4 {[%clk 0:00:08.1]} 41. Re3 {[%clk 0:00:07.1]} 41... Ng5
{[%clk 0:00:07.8]} 42. Rd7 {[%clk 0:00:06.1]} 42... Rxf2+ {[%clk 0:00:06.8]} 43.
Kc3 {[%clk 0:00:06.7]} 43... Nf3 {[%clk 0:00:05.8]} 44. Ree7 {[%clk 0:00:06.2]}
44... Kxg3 {[%clk 0:00:05.5]} 45. Rxf7 {[%clk 0:00:06.6]} 45... h4 {[%clk
0:00:04]} 46. Rh7 {[%clk 0:00:06.7]} 46... h3 {[%clk 0:00:03.9]} 47. Rdg7 {[%clk
0:00:06.4]} 47... h2 {[%clk 0:00:03.6]} 48. Rh6 {[%clk 0:00:06.5]} 48... Rf1
{[%clk 0:00:02.8]} 49. Rgh7 {[%clk 0:00:06.6]} 49... Kg2 {[%clk 0:00:02]} 50.
Rg7 {[%clk 0:00:04.2]} 50... g3 {[%clk 0:00:01.8]} 51. Rgh7 {[%clk 0:00:04.6]}
51... h1=Q {[%clk 0:00:02]} 52. Rxh1 {[%clk 0:00:04.3]} 52... Rxh1 {[%clk
0:00:02.9]} 53. Rg7 {[%clk 0:00:04.4]} 53... Kf2 {[%clk 0:00:03]} 54. Rg6 {[%clk
0:00:04.2]} 54... g2 {[%clk 0:00:03.3]} 0-1

[Event "*** Titled Tuesday Blitz"]
[Site "Chess.com"]
[Date "2020.04.28"]
[Round "8"]
[White "Caterpiller35"]
[Black "kingofthenil"]
[Result "0-1"]
[WhiteElo "2301"]
[BlackElo "2458"]
[TimeControl "180+1"]
[EndTime "11:36:33 PDT"]
[Termination "kingofthenil won on time"]

1. d4 {[%clk 0:02:59.1]} 1... Nf6 {[%clk 0:02:58.1]} 2. Bg5 {[%clk 0:02:59.6]}
2... c5 {[%clk 0:02:59]} 3. Bxf6 {[%clk 0:02:59.2]} 3... gxf6 {[%clk 0:02:59.9]}
4. d5 {[%clk 0:02:59.7]} 4... f5 {[%clk 0:02:56.9]} 5. c4 {[%clk 0:02:58.4]}
5... Bg7 {[%clk 0:02:55.7]} 6. Nc3 {[%clk 0:02:58.6]} 6... O-O {[%clk
0:02:52.9]} 7. Qc2 {[%clk 0:02:58]} 7... d6 {[%clk 0:02:52.1]} 8. e3 {[%clk
0:02:55.1]} 8... e6 {[%clk 0:02:25.3]} 9. Bd3 {[%clk 0:02:50.9]} 9... Nd7 {[%clk
0:02:20.4]} 10. g4 {[%clk 0:02:50.1]} 10... fxg4 {[%clk 0:02:19.2]} 11. Bxh7+
{[%clk 0:02:49]} 11... Kh8 {[%clk 0:02:19.5]} 12. Nge2 {[%clk 0:02:40.8]} 12...
Ne5 {[%clk 0:02:08.9]} 13. Be4 {[%clk 0:02:03.6]} 13... Nxc4 {[%clk 0:02:02.5]}
14. h3 {[%clk 0:01:54.3]} 14... g3 {[%clk 0:01:53.5]} 15. Nxg3 {[%clk
0:01:54.4]} 15... f5 {[%clk 0:01:46.8]} 16. Bd3 {[%clk 0:01:54.2]} 16... Ne5
{[%clk 0:01:47.4]} 17. dxe6 {[%clk 0:01:40.5]} 17... Nxd3+ {[%clk 0:01:45.5]}
18. Qxd3 {[%clk 0:01:40.4]} 18... Bxe6 {[%clk 0:01:45.8]} 19. O-O-O {[%clk
0:01:40]} 19... Qa5 {[%clk 0:01:40.9]} 20. Nge2 {[%clk 0:01:16]} 20... Rfd8
{[%clk 0:01:28.2]} 21. Rdg1 {[%clk 0:01:11.8]} 21... b5 {[%clk 0:01:18.7]} 22.
Rxg7 {[%clk 0:00:54.3]} 22... Kxg7 {[%clk 0:01:18]} 23. Nf4 {[%clk 0:00:54.3]}
23... Re8 {[%clk 0:01:00]} 24. Qxd6 {[%clk 0:00:49.1]} 24... Qb6 {[%clk
0:00:53.9]} 25. Qe5+ {[%clk 0:00:47.6]} 25... Kf7 {[%clk 0:00:53.6]} 26. Ncd5
{[%clk 0:00:27.6]} 26... Bxd5 {[%clk 0:00:19.2]} 27. Qxf5+ {[%clk 0:00:27.3]}
27... Qf6 {[%clk 0:00:06.6]} 28. Qxd5+ {[%clk 0:00:25.5]} 28... Ke7 {[%clk
0:00:07.1]} 29. Qxc5+ {[%clk 0:00:12.9]} 29... Qd6 {[%clk 0:00:05.3]} 30. Qg5+
{[%clk 0:00:12.1]} 30... Kd7 {[%clk 0:00:03.8]} 31. Qf5+ {[%clk 0:00:05.7]}
31... Kd8 {[%clk 0:00:02.9]} 32. Qg5+ {[%clk 0:00:02.6]} 32... Re7 {[%clk
0:00:02.6]} 33. Qg8+ {[%clk 0:00:02.6]} 33... Re8 {[%clk 0:00:02.1]} 34. Qg5+
{[%clk 0:00:02.8]} 34... Kc7 {[%clk 0:00:01.7]} 35. Rd1 {[%clk 0:00:02.7]} 35...
Qc6+ {[%clk 0:00:02.4]} 36. Kb1 {[%clk 0:00:03.1]} 36... Rad8 {[%clk 0:00:03.2]}
37. Rc1 {[%clk 0:00:02.8]} 37... Kb7 {[%clk 0:00:03.5]} 38. Rxc6 {[%clk
0:00:02.8]} 38... Kxc6 {[%clk 0:00:04.4]} 39. Qf6+ {[%clk 0:00:02.9]} 39... Rd6
{[%clk 0:00:04.3]} 40. Qf7 {[%clk 0:00:03.2]} 40... Red8 {[%clk 0:00:04.2]} 41.
a3 {[%clk 0:00:03.5]} 41... a5 {[%clk 0:00:03.7]} 42. Qa7 {[%clk 0:00:03.4]}
42... a4 {[%clk 0:00:02.6]} 43. Qa6+ {[%clk 0:00:03.5]} 43... Kc5 {[%clk
0:00:02.6]} 44. Ne2 {[%clk 0:00:03.8]} 44... Rxa6 {[%clk 0:00:01.8]} 0-1